lending/lending_fUSD_20260222
["ID","MTS","AMOUNT","RATE_DAILY","PERIOD"]
[406343898,1771769832122,225.77219496,0.00015101,2]
[406343899,1771769832147,282.22780504,0.00015101,2]
[406343900,1771769911893,384.65829244,0.000158,2]
[406343901,1771769911916,551.55170756,0.000158,2]
[406343904,1771770192939,115.33438992,0.00015101,2]
[406343905,1771770192961,392.66561008,0.00015101,2]
[406343906,1771770321459,5257.0,0.00018101,120]
[406343907,1771770352552,274.2204874,9.95e-05,2]
[406343908,1771770352582,31465.730413,9.95e-05,2]
[406343909,1771770352807,1810.57997638,9.95e-05,2]
[406343914,1771770630527,150.000001,0.0001799,120]
[406343923,1771770632033,-544.02,0.000162,5]
[406343924,1771770632046,-4455.98706224,0.000162,5]
[406343925,1771770632056,-300.0,0.000162,2]
[406343926,1771770632065,-195.0,0.000162,2]
[406343927,1771770632074,-300.0,0.000162,2]
[406343928,1771770632083,-300.0,0.00016515,2]
[406343929,1771770632093,-300.0,0.00016515,2]
[406343930,1771770632103,-150.0,0.0001658,30]
[406343931,1771770632114,-195.0,0.00016596,2]
[406343932,1771770632124,-195.0,0.00016596,2]
[406343933,1771770632134,-300.0,0.00016999,2]
[406343934,1771770632144,-1200.0,0.00016999,2]
[406343935,1771770632154,-6393.86596795,0.00017,2]
[406343936,1771770632164,-978.040212,0.00017081,7]
[406343937,1771770632174,-186.837753,0.00017376,7]
[406343938,1771770632183,-241.06,0.000174,2]
[406343939,1771770632196,-406.36719859,0.00017819,2]
[406343940,1771770632205,-195.0,0.0001782,2]
[406343941,1771770632216,-300.0,0.0001782,2]
[406343942,1771770632226,-599.05725983,0.00017899,2]
[406343943,1771770632235,-345.0,0.00017899,2]
[406343944,1771770632244,-575385.46678735,0.000179,2]
[406343945,1771770632257,-3379.6,0.000179,2]
[406343965,1771770638286,-11999.06287786,0.000179,2]
[406343968,1771770638297,-1789.13407669,0.000179,2]
[406343970,1771770638308,-73877.18821843,0.000179,2]
[406343972,1771770638319,-1917.13880781,0.000179,2]
[406343974,1771770638331,-1980.58075856,0.000179,2]
[406343976,1771770638342,-2829671.8284733,0.000179,2]
[406343978,1771770638352,-500.0,0.00017999,2]
[406343980,1771770638361,-500.0,0.00017999,2]
[406343982,1771770638370,-563.14702534,0.00017999,2]
[406343984,1771770638381,-500.0,0.00017999,2]
[406343985,1771770638391,-500.0,0.00017999,2]
[406343986,1771770638400,-500.0,0.00017999,2]
[406343987,1771770638410,-500.0,0.00017999,2]
[406343988,1771770638419,-500.0,0.00017999,2]
[406343989,1771770638429,-500.0,0.00017999,2]
[406343990,1771770638438,-500.0,0.00017999,2]
[406343991,1771770638448,-500.0,0.00017999,2]
[406343992,1771770638461,-500.0,0.00017999,2]
[406343993,1771770638471,-500.0,0.00017999,2]
[406343994,1771770638481,-500.0,0.00017999,2]
[406343995,1771770638490,-500.0,0.00017999,2]
[406343996,1771770638499,-500.0,0.00017999,2]
[406343997,1771770638509,-500.0,0.00017999,2]
[406343998,1771770638518,-500.0,0.00017999,2]
[406343999,1771770638527,-500.0,0.00017999,2]
[406344000,1771770638537,-500.0,0.00017999,2]
[406344001,1771770638546,-500.0,0.00017999,2]
[406344002,1771770638556,-500.0,0.00017999,2]
[406344003,1771770638565,-500.0,0.00017999,2]
[406344004,1771770638575,-500.0,0.00017999,2]
[406344005,1771770638585,-500.0,0.00017999,2]
[406344006,1771770638595,-500.0,0.00017999,2]
[406344007,1771770638604,-500.0,0.00017999,2]
[406344008,1771770638613,-500.0,0.00017999,2]
[406344009,1771770638623,-500.0,0.00017999,2]
[406344010,1771770638633,-500.0,0.00017999,2]
[406344011,1771770638644,-500.0,0.00017999,2]
[406344012,1771770638653,-500.0,0.00017999,2]
[406344013,1771770638664,-500.0,0.00017999,2]
[406344014,1771770638674,-500.0,0.00017999,2]
[406344015,1771770638683,-500.0,0.00017999,2]
[406344016,1771770638694,-162.6814865,0.00017999,2]
[406344017,1771770638704,-408.35013263,0.00017999,2]
[406344018,1771770638714,-405.21030131,0.00017999,2]
[406344019,1771770638724,-263.7555946,0.00017999,2]
[406344020,1771770638733,-500.0,0.00017999,2]
[406344021,1771770638742,-404.38214481,0.00017999,2]
[406344022,1771770638752,-65046.70380845,0.00018,2]
[406344023,1771770638762,-7519.73980545,0.00018,2]
[406344024,1771770638772,-3079132.01139454,0.00018,2]
[406344029,1771770640486,-630933.55387602,0.00018,2]
[406344030,1771770640496,-1000.0,0.000181,2]
[406344031,1771770640505,-420.0,0.00018567,2]
[406344032,1771770640519,-1200.0,0.00018659,2]
[406344033,1771770640528,-200.0,0.00019082,2]
[406344034,1771770640538,-150.0,0.00019178,2]
[406344035,1771770640547,-250.0,0.00019726,2]
[406344036,1771770640556,-153.26383928,0.0002,2]
[406344037,1771770640565,-150.99,0.00020028,2]
[406344038,1771770640574,-160.0,0.00020068,2]
[406344039,1771770640584,-266.05548305,0.00020274,2]
[406344040,1771770640593,-587.0,0.00020279,2]
[406344041,1771770640603,-1222.550265,0.00020497,7]
[406344042,1771770640613,-173.78509278,0.00020506,2]
[406344043,1771770640622,-1197.61315713,0.00021,2]
[406344044,1771770640632,-197.67601321,0.00021,2]
[406344045,1771770640642,-110391.87866356,0.00021,2]
[406344046,1771770640651,-250.0,0.00021406,2]
[406344047,1771770640660,-223.01004224,0.000215,2]
[406344048,1771770640670,-3045.54,0.00021918,2]
[406344049,1771770640680,-204.96,0.00021982,2]
[406344050,1771770640689,-132456.41210482,0.00022,2]
[406344051,1771770640698,-163.53,0.00022,2]
[406344052,1771770640708,-160.0,0.00022,2]
[406344053,1771770640717,-11667.65,0.00022,2]
[406344054,1771770640726,-150.99,0.0002203,2]
[406344056,1771770640735,-9999.99,0.0002203,2]
[406344057,1771770640746,-6985.85,0.0002203,2]
[406344058,1771770640756,-999.99,0.0002203,2]
[406344059,1771770640766,-823.0,0.00022149,2]
[406344060,1771770640775,-525.45261076,0.0002271,2]
[406344061,1771770640785,-150.0,0.000229,14]
[406344062,1771770640794,-304941.08931983,0.00023,2]
[406344063,1771770640804,-678.55897621,0.000232,2]
[406344064,1771770640815,-199.86,0.00023237,2]
[406344065,1771770640825,-200.0,0.000235,2]
[406344066,1771770640835,-1317.62206295,0.0002366,2]
[406344067,1771770640847,-2500.0,0.0002366,2]
[406344068,1771770640857,-300.0,0.00023759,2]
[406344069,1771770640866,-487.0,0.0002376,2]
[406344070,1771770640875,-487.0,0.0002376,2]
[406344071,1771770640884,-487.0,0.0002376,2]
[406344072,1771770640893,-487.0,0.0002376,2]
[406344073,1771770640903,-908.11,0.0002376,2]
[406344074,1771770640916,-1025.97804106,0.00024,2]
[406344075,1771770640930,-1240.61347426,0.00024,2]
[406344076,1771770640941,-1085.0,0.00024192,2]
[406344077,1771770640950,-423.83982989,0.0002421,2]
[406344078,1771770640959,-3443.16368823,0.00024512,2]
[406344079,1771770640969,-150.0,0.00024658,2]
[406344080,1771770640978,-280.0,0.00024817,10]
[406344081,1771770640988,-182.06658955,0.00024887,2]
[406344082,1771770640997,-1116.42972084,0.00025,2]
[406344083,1771770641007,-207.97918787,0.00025,2]
[406344085,1771770641016,-1788.88729396,0.00025,2]
[406344086,1771770641025,-540.0,0.00025,2]
[406344087,1771770641034,-612.28323019,0.00025,2]
[406344088,1771770641043,-3051.35296469,0.00025,2]
[406344089,1771770641052,-167.70034267,0.00025,2]
[406344090,1771770641063,-236.113755,0.00025506,30]
[406344091,1771770641072,-1467.060318,0.00025621,30]
[406344092,1771770641082,-150.0,0.0002589,2]
[406344093,1771770641091,-602.33228251,0.0002599,2]
[406344094,1771770641100,-4534.00127051,0.00026,2]
[406344095,1771770641109,-217.00225735,0.00026,2]
[406344096,1771770641118,-1317.6220629,0.00026049,2]
[406344097,1771770641127,-218.75346,0.00026064,30]
[406344098,1771770641136,-11667.65,0.000261,2]
[406344099,1771770641146,-237.08482495,0.000263,2]
[406344100,1771770641155,-27544.86583785,0.000264,2]
[406344101,1771770641164,-3443.16368822,0.00026807,2]
[406344102,1771770641174,-199.86,0.00026908,7]
[406344103,1771770641183,-250.0,0.00027,2]
[406344104,1771770641192,-1037.17620724,0.00027,2]
[406344105,1771770641202,-165.00360637,0.00027,2]
[406344106,1771770641211,-530.0,0.00027,2]
[406344107,1771770641220,-150.0,0.00027185,2]
[406344108,1771770641229,-680.76923077,0.0002737,2]
[406344109,1771770641239,-4122.0987762,0.0002739,2]
[406344110,1771770641248,-8144.25827698,0.0002739,2]
[406344111,1771770641259,-520.92,0.00027397,2]
[406344112,1771770641273,-1000.0,0.00027397,20]
[406344113,1771770641285,-1450.55,0.00027397,2]
[406344114,1771770641294,-180.0,0.00027479,15]
[406344115,1771770641303,-201.82726027,0.000275,2]
[406344116,1771770641312,-551.34617508,0.000275,2]
[406344117,1771770641323,-51015.27399493,0.00028,2]
[406344118,1771770641333,-21796.41072197,0.00028,60]
[406344119,1771770641343,-160.0,0.00028,2]
[406344120,1771770641352,-3240.0,0.00028332,2]
[406344121,1771770641362,-1317.6220629,0.00028438,2]
[406344122,1771770641371,-150.0,0.00028544,2]
[406344123,1771770641381,-495.77856808,0.00028767,2]
[406344124,1771770641391,-1210.0,0.00028807,2]
[406344125,1771770641401,-372.0,0.00028807,2]
[406344126,1771770641412,-5977.0,0.00028807,2]
[406344127,1771770641422,-2454.0,0.00028807,2]
[406344128,1771770641432,-618.0,0.00028807,2]
[406344129,1771770641442,-1338.0,0.00028807,2]
[406344130,1771770641452,-1276.0,0.00028807,2]
[406344131,1771770641461,-920.0,0.00028807,2]
[406344132,1771770641471,-503.9138085,0.00029,2]
[406344133,1771770641480,-23449.66,0.00029058,2]
[406344134,1771770641490,-3443.16368822,0.00029101,2]
[406344135,1771770641499,-150.0,0.00029387,2]
[406344136,1771770641509,-11667.65,0.000294,2]
[406344137,1771770641518,-79180.15058256,0.000299,2]
[406344138,1771770641528,-150.0,0.00029971,2]
[406344139,1771770641537,-238.1263055,0.0002999,2]
[406344140,1771770641731,-19943.51451283,0.0003,2]
[406344141,1771770641740,-320.52096258,0.0003,2]
[406344142,1771770641750,-1824.63515708,0.0003,2]
[406344143,1771770641759,-163.65754243,0.0003,2]
[406344144,1771770641769,-1077.86299281,0.0003013,2]
[406344145,1771770641778,-13905.66835593,0.0003013,2]
[406344146,1771770641787,-636.53572096,0.0003013,2]
[406344147,1771770641796,-202.49787502,0.0003013,2]
[406344148,1771770641806,-7761.6147683,0.0003013,2]
[406344149,1771770641815,-180.0,0.00030141,23]
[406344150,1771770641825,-15596.54748013,0.000302,2]
[406344151,1771770641835,-199.86,0.00030579,30]
[406344152,1771770641846,-151.0,0.00030597,2]
[406344153,1771770641856,-151.0,0.00030597,2]
[406344154,1771770641867,-151.0,0.00030597,2]
[406344155,1771770641877,-151.0,0.00030597,2]
[406344156,1771770641886,-151.0,0.00030597,2]
[406344157,1771770641896,-151.0,0.00030597,2]
[406344158,1771770641906,-151.0,0.00030597,2]
[406344159,1771770641919,-151.0,0.00030597,2]
[406344160,1771770641930,-151.0,0.00030597,2]
[406344161,1771770641940,-151.0,0.00030612,7]
[406344162,1771770641949,-151.0,0.00030612,7]
[406344163,1771770641960,-151.0,0.00030612,7]
[406344164,1771770641975,-150.0,0.00030614,20]
[406344165,1771770641984,-1317.6220629,0.00030827,2]
[406344166,1771770641996,-1615.13247028,0.0003084,2]
[406344167,1771770642007,-79323.33825602,0.0003095,2]
[406344168,1771770642017,-51330.29522338,0.00031,2]
[406344169,1771770642027,-3443.16368822,0.00031396,2]
[406344170,1771770642038,-406.36719857,0.00031493,2]
[406344171,1771770642048,-198.11340609,0.000315,2]
[406344172,1771770642057,-1210.0,0.00031807,2]
[406344173,1771770642067,-2454.0,0.00031807,2]
[406344174,1771770642076,-618.0,0.00031807,2]
[406344175,1771770642085,-606.469,0.00031807,2]
[406344176,1771770642094,-897.70606283,0.000323,2]
[406344177,1771770642103,-20037.15594043,0.000323,2]
[406344178,1771770642112,-165.07743367,0.00032744,2]
[406344179,1771770642121,-500.0,0.00032781,120]
[406344180,1771770642131,-4849.86408347,0.000328,2]
[406344181,1771770642140,-180.0,0.00032803,35]
[406344182,1771770642149,-1726.91534345,0.0003287,4]
[406344183,1771770642159,-500.0,0.00032973,5]
[406344184,1771770642170,-284.23,0.00033,2]
[406344185,1771770642179,-47701.45334448,0.00033,2]
[406344186,1771770642188,-26485.84696501,0.00033,2]
[406344187,1771770642198,-154.20459671,0.00033,2]
[406344188,1771770642209,-1317.6220629,0.00033216,2]
[406344189,1771770642218,-1216.40616066,0.000335,2]
[406344190,1771770642229,-1000.0,0.00033611,2]
[406344191,1771770642238,-3443.16368822,0.0003369,2]
[406344192,1771770642248,-11667.65,0.000337,2]
[406344193,1771770642257,-1222.550265,0.00034162,60]
[406344194,1771770642266,-199.86,0.0003425,30]
[406344195,1771770642275,-168.0,0.00034301,2]
[406344196,1771770642284,-1738.4668835,0.0003449,2]
[406344197,1771770642293,-340.28316,0.00034752,60]
[406344198,1771770642302,-1500.0,0.00034795,2]
[406344199,1771770642311,-1209.0,0.00034807,2]
[406344200,1771770642320,-2286.608,0.00034807,2]
[406344201,1771770642330,-618.0,0.00034807,2]
[406344202,1771770642339,-1925.28348306,0.00035,2]
[406344203,1771770642348,-803.08787113,0.00035,2]
[406344204,1771770642357,-168.0,0.00035086,2]
[406344205,1771770642367,-168.0,0.00035134,2]
[406344206,1771770642377,-244.21997106,0.00035226,2]
[406344207,1771770642386,-168.0,0.00035243,2]
[406344208,1771770642396,-1000.0,0.00035266,2]
[406344209,1771770642406,-1000.0,0.00035266,2]
[406344210,1771770642416,-1000.0,0.00035266,2]
[406344211,1771770642426,-1000.0,0.00035266,2]
[406344212,1771770642435,-1000.0,0.00035266,2]
[406344213,1771770642446,-30867.0214836,0.00035355,2]
[406344214,1771770642455,-168.0,0.0003536,2]
[406344215,1771770642465,-180.0,0.00035466,43]
[406344216,1771770642475,-2000.0,0.000355,2]
[406344217,1771770642485,-233.95598063,0.00035589,120]
[406344218,1771770642494,-680.76923077,0.00035589,30]
[406344219,1771770642504,-1317.6220629,0.00035604,2]
[406344220,1771770642515,-23777.50109647,0.0003561,2]
[406344221,1771770642525,-168.0,0.00035869,2]
[406344222,1771770642535,-3443.16368822,0.00035985,2]
[406344223,1771770642546,-115987.99977263,0.00036,2]
[406344224,1771770642556,-168.0,0.00036033,2]
[406344225,1771770642567,-168.0,0.00036159,2]
[406344226,1771770642576,-1617.2389744,0.000368,2]
[406344227,1771770642587,-1963.2496398,0.000368,2]
[406344228,1771770642597,-1000.0,0.00036884,2]
[406344229,1771770642606,-482.8456,0.00036884,120]
[406344230,1771770642616,-150.0,0.000369,120]
[406344231,1771770642626,-169.05339656,0.000369,2]
[406344232,1771770642635,-14186.79877603,0.0003691,2]
[406344233,1771770642644,-168.0,0.00036928,2]
[406344234,1771770642654,-11563.0972,0.00036984,2]
[406344235,1771770642664,-365.0,0.00037,2]
[406344236,1771770642673,-166.3728012,0.00037,2]
[406344237,1771770642682,-500.0,0.00037083,2]
[406344238,1771770642691,-500.0,0.00037083,7]
[406344239,1771770642700,-500.0,0.00037083,7]
[406344240,1771770642709,-500.0,0.00037083,7]
[406344241,1771770642722,-500.0,0.00037083,7]
[406344242,1771770642731,-500.0,0.00037083,7]
[406344243,1771770642740,-500.0,0.00037083,7]
[406344244,1771770642749,-528.61421067,0.00037083,7]
[406344246,1771770642759,-500.0,0.00037083,7]
[406344248,1771770642767,-2000.0,0.00037083,7]
[406344249,1771770642776,-500.0,0.00037083,7]
[406344250,1771770642786,-2000.0,0.00037083,7]
[406344251,1771770642795,-500.0,0.00037083,7]
[406344252,1771770642803,-500.0,0.00037083,7]
[406344253,1771770642813,-2000.0,0.00037083,7]
[406344254,1771770642822,-500.0,0.00037083,7]
[406344255,1771770642832,-283.03296635,0.00037083,7]
[406344256,1771770642841,-2000.0,0.00037083,7]
[406344257,1771770642850,-500.0,0.00037083,7]
[406344258,1771770642859,-2023.95858652,0.00037083,7]
[406344259,1771770642868,-500.0,0.00037083,7]
[406344260,1771770642877,-500.0,0.00037083,7]
[406344261,1771770642886,-500.0,0.00037083,7]
[406344262,1771770642896,-500.0,0.00037083,7]
[406344263,1771770642905,-500.0,0.00037083,7]
[406344264,1771770642914,-500.0,0.00037083,7]
[406344265,1771770642927,-300.0,0.00037083,7]
[406344267,1771770642937,-500.0,0.00037083,7]
[406344269,1771770642946,-300.0,0.00037083,7]
[406344271,1771770642955,-500.0,0.00037083,7]
[406344273,1771770642964,-693.3919763,0.00037083,7]
[406344275,1771770642973,-500.0,0.00037083,7]
[406344276,1771770642982,-719.04747942,0.00037083,7]
[406344278,1771770642993,-500.0,0.00037083,7]
[406344280,1771770643002,-745.65223616,0.00037083,7]
[406344282,1771770643011,-500.0,0.00037083,7]
[406344284,1771770643020,-773.2413689,0.00037083,7]
[406344286,1771770643029,-300.0,0.00037083,7]
[406344288,1771770643038,-500.0,0.00037083,7]
[406344290,1771770643047,-801.85129955,0.00037083,7]
[406344293,1771770643057,-300.0,0.00037083,7]
[406344295,1771770643066,-831.51979763,0.00037083,7]
[406344298,1771770643075,-300.0,0.00037083,7]
[406344301,1771770643084,-862.28603014,0.00037083,7]
[406344303,1771770643093,-300.0,0.00037083,7]
[406344305,1771770643102,-894.19061326,0.00037083,7]
[406344307,1771770643111,-300.0,0.00037083,7]
[406344309,1771770643120,-927.27566595,0.00037083,7]
[406344311,1771770643130,-300.0,0.00037083,7]
[406344313,1771770643139,-961.58486559,0.00037083,7]
[406344315,1771770643149,-300.0,0.00037083,7]
[406344317,1771770643158,-997.16350561,0.00037083,7]
[406344319,1771770643168,-300.0,0.00037083,7]
[406344320,1771770643178,-162.51671768,0.00037083,7]
[406344321,1771770643187,-151.0,0.00037083,7]
[406344322,1771770643196,-151.0,0.00037083,7]
[406344323,1771770643205,-151.0,0.00037083,7]
[406344324,1771770643215,-151.0,0.00037083,7]
[406344325,1771770643224,-151.0,0.00037083,7]
[406344326,1771770643233,-151.0,0.00037083,7]
[406344327,1771770643242,-151.0,0.00037083,7]
[406344328,1771770643251,-151.0,0.00037083,7]
[406344329,1771770643260,-151.0,0.00037083,7]
[406344330,1771770643269,-151.0,0.00037083,7]
[406344331,1771770643278,-151.0,0.00037083,7]
[406344332,1771770643287,-21759.10614729,0.00037084,7]
[406344333,1771770643296,-17627.85444691,0.00037084,7]
[406344334,1771770643306,-1100.53866872,0.00037084,3]
[406344335,1771770643317,-151.0,0.00037084,7]
[406344336,1771770643327,-151.0,0.00037084,7]
[406344337,1771770643336,-151.0,0.00037084,7]
[406344338,1771770643346,-220.78276103,0.00037084,7]
[406344339,1771770643356,-1916.911,0.00037115,47]
[406344340,1771770643364,-198.708,0.00037115,47]
[406344341,1771770643375,-284.23,0.000372,2]
[406344342,1771770643385,-1000.0,0.00037212,14]
[406344343,1771770643396,-168.0,0.00037216,2]
[406344344,1771770643406,-200.0,0.00037325,2]
[406344345,1771770643417,-1000.0,0.00037486,14]
[406344346,1771770643428,-4351.10384043,0.0003759,2]
[406344347,1771770643438,-166.66,0.00037624,30]
[406344348,1771770643447,-304.59,0.00037719,2]
[406344349,1771770643456,-479.0,0.0003773,30]
[406344350,1771770643466,-1000.0,0.0003776,14]
[406344351,1771770643476,-297.211,0.00037807,2]
[406344352,1771770643486,-1000.0,0.00037812,2]
[406344353,1771770643498,-202.99830884,0.0003788,2]
[406344354,1771770643507,-164.4,0.000379,30]
[406344355,1771770643517,-330.3753145,0.00037908,5]
[406344356,1771770643526,-199.86,0.00037921,60]
[406344357,1771770643535,-1317.6220629,0.00037993,2]
[406344358,1771770643545,-500.0,0.00038034,2]
[406344359,1771770643554,-500.0,0.00038034,2]
[406344360,1771770643563,-500.0,0.00038034,2]
[406344361,1771770643573,-500.0,0.00038034,2]
[406344362,1771770643582,-500.0,0.00038034,2]
[406344363,1771770643591,-500.0,0.00038034,2]
[406344364,1771770643601,-372.93950921,0.00038034,2]
[406344365,1771770643610,-1000.0,0.00038034,14]
[406344366,1771770643619,-413.5,0.0003806,30]
[406344367,1771770643629,-997.67,0.00038123,2]
[406344368,1771770643639,-8898.0,0.00038268,5]
[406344369,1771770643649,-169.05339653,0.00038277,2]
[406344370,1771770643658,-3443.16368822,0.00038279,2]
[406344371,1771770643669,-1000.0,0.00038308,14]
[406344372,1771770643679,-5143.50717043,0.00038373,120]
[406344373,1771770643689,-593.86292334,0.00038373,120]
[406344374,1771770643698,-603.0,0.00038373,120]
[406344375,1771770643707,-1000.0,0.00038582,14]
[406344376,1771770643716,-17660.15652026,0.00038646,3]
[406344377,1771770643726,-7427.94141284,0.00038834,2]
[406344378,1771770643736,-1000.0,0.00038856,14]
[406344379,1771770643745,-793.994042,0.00038974,60]
[406344380,1771770643755,-30892.05949706,0.00039,2]
[406344381,1771770643764,-1000.0,0.0003913,14]
[406344382,1771770643774,-1505.0,0.000392,2]
[406344383,1771770643783,-1000.0,0.00039404,14]
[406344384,1771770643792,-1600.0,0.00039425,120]
[406344385,1771770643801,-169.05339653,0.00039654,2]
[406344386,1771770643811,-1000.0,0.00039678,14]
[406344387,1771770643820,-46052.48794098,0.000397,2]
[406344388,1771770643829,-30867.0214836,0.00039806,2]
[406344389,1771770643838,-1000.0,0.00039952,14]
[406344390,1771770643847,-10000.0,0.0004,120]
[406344391,1771770643856,-9999.99,0.0004,120]
[406344392,1771770643866,-9999.99,0.0004,120]
[406344393,1771770643875,-9999.99,0.0004,120]
[406344394,1771770643885,-10000.0,0.0004,120]
[406344395,1771770643894,-9999.98,0.0004,120]
[406344396,1771770643904,-18268.31,0.0004,120]
[406344397,1771770643913,-10000.0,0.0004,120]
[406344398,1771770643927,-153.0,0.0004,120]
[406344399,1771770643937,-5000.0,0.0004,3]
[406344400,1771770643946,-759.48850188,0.0004,2]
[406344401,1771770643956,-306.0,0.0004,7]
[406344402,1771770643965,-768.96712559,0.0004,2]
[406344403,1771770643976,-150.51,0.0004,2]
[406344404,1771770643987,-1000.0,0.00040226,14]
[406344405,1771770643997,-208.52,0.00040276,14]
[406344406,1771770644006,-276.5,0.0004034,14]
[406344407,1771770644016,-1317.6220629,0.00040382,15]
[406344408,1771770644026,-1000.0,0.000405,14]
[406344409,1771770644035,-3443.16368822,0.00040574,15]
[406344410,1771770644045,-703.0,0.00040648,2]
[406344411,1771770644054,-150.0,0.00040648,2]
[406344412,1771770644064,-253.0,0.00040648,2]
[406344413,1771770644073,-284.23,0.000407,30]
[406344414,1771770644083,-855.68345202,0.0004074,2]
[406344415,1771770644092,-306.05328416,0.0004074,2]
[406344416,1771770644101,-884.4819891,0.0004074,2]
[406344417,1771770644111,-1563.1197537,0.0004074,2]
[406344418,1771770644120,-307.27731077,0.0004074,2]
[406344419,1771770644129,-458.78505011,0.0004074,2]
[406344420,1771770644139,-371.39458192,0.0004074,2]
[406344421,1771770644149,-549.05872184,0.0004074,2]
[406344422,1771770644158,-518.57454504,0.0004074,2]
[406344423,1771770644168,-306.23261478,0.0004074,2]
[406344424,1771770644179,-300.0,0.0004074,2]
[406344425,1771770644190,-1082.06179791,0.0004074,2]
[406344426,1771770644199,-300.0,0.0004074,2]
[406344427,1771770644208,-855.68345202,0.0004074,2]
[406344428,1771770644218,-306.05328416,0.0004074,2]
[406344429,1771770644228,-884.4819891,0.0004074,2]
[406344430,1771770644237,-1560.97026512,0.0004074,2]
[406344431,1771770644247,-307.27731077,0.0004074,2]
[406344432,1771770644257,-458.78505011,0.0004074,2]
[406344433,1771770644267,-371.39458192,0.0004074,2]
[406344434,1771770644276,-518.57454504,0.0004074,2]
[406344435,1771770644286,-306.23261478,0.0004074,2]
[406344436,1771770644295,-300.0,0.0004074,2]
[406344437,1771770644305,-1082.06179791,0.0004074,2]
[406344438,1771770644314,-300.93550866,0.0004074,2]
[406344439,1771770644324,-855.68345202,0.0004074,2]
[406344440,1771770644334,-306.05328416,0.0004074,2]
[406344441,1771770644344,-884.4819891,0.0004074,2]
[406344442,1771770644354,-307.27731077,0.0004074,2]
[406344443,1771770644364,-458.78505011,0.0004074,2]
[406344444,1771770644373,-371.39458192,0.0004074,2]
[406344445,1771770644383,-518.57454504,0.0004074,2]
[406344446,1771770644392,-306.23261478,0.0004074,2]
[406344447,1771770644401,-300.0,0.0004074,2]
[406344448,1771770644411,-1082.06179791,0.0004074,2]
[406344449,1771770644422,-855.68345202,0.0004074,2]
[406344450,1771770644432,-306.05328416,0.0004074,2]
[406344451,1771770644442,-300.0,0.0004074,2]
[406344452,1771770644452,-884.4819891,0.0004074,2]
[406344453,1771770644462,-300.0,0.0004074,2]
[406344454,1771770644473,-307.27731077,0.0004074,2]
[406344455,1771770644483,-458.78505011,0.0004074,2]
[406344456,1771770644492,-300.0,0.0004074,2]
[406344457,1771770644502,-371.39458192,0.0004074,2]
[406344458,1771770644512,-300.0,0.0004074,2]
[406344459,1771770644521,-300.0,0.0004074,2]
[406344460,1771770644530,-518.57454504,0.0004074,2]
[406344461,1771770644540,-306.23261478,0.0004074,2]
[406344462,1771770644549,-300.0,0.0004074,2]
[406344463,1771770644559,-300.0,0.0004074,2]
[406344464,1771770644569,-300.0,0.0004074,2]
[406344465,1771770644578,-300.0,0.0004074,2]
[406344466,1771770644588,-614.54850457,0.0004074,2]
[406344467,1771770644597,-300.0,0.0004074,2]
[406344468,1771770644607,-1082.06179791,0.0004074,2]
[406344469,1771770644616,-300.0,0.0004074,2]
[406344470,1771770644625,-150.0,0.00040773,7]
[406344471,1771770644634,-150.0,0.00040773,7]
[406344472,1771770644644,-182.60301976,0.00040773,7]
[406344473,1771770644653,-150.0,0.00040773,7]
[406344474,1771770644663,-150.0,0.00040773,7]
[406344475,1771770644672,-150.0,0.00040773,7]
[406344476,1771770644681,-150.0,0.00040773,7]